fUSD/lending_fUSD_20250521
["ID","MTS","AMOUNT","RATE_DAILY","PERIOD"]
[361807766,1747822999150,-660.34325363,0.00042908,120]
[361807767,1747822999176,-561765.48481883,0.00042908,30]
[361807768,1747822999207,-572.27746856,0.00042908,30]
[361807769,1747822999236,-6396.906953,0.00042908,120]
[361807770,1747822999264,-4896.0122,0.00042908,120]
[361807771,1747822999292,-749.0,0.00042908,120]
[361807772,1747822999319,-1000.0,0.00042908,30]
[361807773,1747822999348,-11886.0,0.00042908,120]
[361807774,1747822999375,-1676.7538082,0.00042908,120]
[361807775,1747822999402,-400.8203944,0.00042908,30]
[361807776,1747822999430,-10000.0,0.00042908,30]
[361807777,1747822999456,-10000.0,0.00042908,30]
[361807778,1747822999482,-10000.0,0.00042908,30]
[361807779,1747822999509,-10000.0,0.00042908,30]
[361807780,1747822999535,-10000.0,0.00042908,30]
[361807781,1747822999563,-10000.0,0.00042908,30]
[361807782,1747822999589,-10000.0,0.00042908,30]
[361807783,1747822999616,-10000.0,0.00042908,30]
[361807784,1747822999641,-10000.0,0.00042908,30]
[361807785,1747822999666,-10000.0,0.00042908,30]
[361807786,1747822999690,-10000.0,0.00042908,30]
[361807787,1747822999716,-10000.0,0.00042908,30]
[361807788,1747822999741,-10000.0,0.00042908,30]
[361807789,1747822999767,-10000.0,0.00042908,30]
[361807790,1747823000306,-10000.0,0.00042908,30]
[361807791,1747823000333,-10000.0,0.00042908,30]
[361807792,1747823000359,-10000.0,0.00042908,30]
[361807793,1747823000384,-7849.61279993,0.00042908,30]
[361807794,1747823000410,-3244.88226474,0.00042908,120]
[361807795,1747823000435,-2833.58262892,0.00042908,120]
[361807796,1747823000460,-1800.0,0.00042908,120]
[361807797,1747823000487,-47949.307281,0.00042908,120]
[361807798,1747823000511,-3000.0,0.00042908,30]
[361807799,1747823000537,-1000.0,0.00042908,120]
[361807800,1747823000562,-1000.0,0.00042908,120]
[361807801,1747823000588,-1000.0,0.00042908,120]
[361807802,1747823000614,-1000.0,0.00042908,120]
[361807803,1747823000639,-1000.0,0.00042908,120]
[361807804,1747823000663,-1000.0,0.00042908,120]
[361807805,1747823000689,-1000.0,0.00042908,120]
[361807806,1747823000714,-1000.0,0.00042908,120]
[361807807,1747823000740,-1000.0,0.00042908,120]
[361807808,1747823000765,-1000.0,0.00042908,120]
[361807809,1747823000790,-1000.0,0.00042908,120]
[361807810,1747823000815,-1000.0,0.00042908,120]
[361807811,1747823000840,-1000.0,0.00042908,120]
[361807812,1747823000866,-1000.0,0.00042908,120]
[361807813,1747823000891,-1000.0,0.00042908,120]
[361807814,1747823000916,-287.63336323,0.00042908,120]
[361807815,1747823000940,-1373.0,0.00042908,30]
[361807816,1747823000965,-1500.0,0.00042908,30]
[361807817,1747823000989,-2081083.08,0.00042908,60]
[361807818,1747823001012,-151.0,0.00042908,30]
[361807819,1747823001037,-500.0,0.00042908,30]
[361807820,1747823001061,-156.0,0.00042908,30]
[361807821,1747823001086,-151.0,0.00042908,30]
[361807822,1747823001111,-151.0,0.00042908,30]
[361807823,1747823001138,-518.5,0.00042908,30]
[361807824,1747823001162,-1000.0,0.00042908,30]
[361807825,1747823001187,-151.0,0.00042908,30]
[361807826,1747823001214,-537.6845,0.00042908,30]
[361807827,1747823001240,-1037.0,0.00042908,30]
[361807828,1747823001265,-151.0,0.00042908,30]
[361807829,1747823001290,-557.5788265,0.00042908,30]
[361807830,1747823001315,-1075.369,0.00042908,30]
[361807831,1747823001341,-151.0,0.00042908,30]
[361807832,1747823001365,-578.20924308,0.00042908,30]
[361807833,1747823001391,-1115.157653,0.00042908,30]
[361807834,1747823001415,-599.60298507,0.00042908,30]
[361807835,1747823001441,-1156.41848616,0.00042908,30]
[361807836,1747823001465,-151.0,0.00042908,30]
[361807837,1747823001489,-621.78829552,0.00042908,30]
[361807838,1747823001516,-1199.20597015,0.00042908,30]
[361807839,1747823001541,-156.587,0.00042908,30]
[361807840,1747823001566,-644.79446246,0.00042908,30]
[361807841,1747823001590,-1243.57659104,0.00042908,30]
[361807842,1747823001615,-162.380719,0.00042908,30]
[361807843,1747823001641,-668.65185757,0.00042908,30]
[361807844,1747823001665,-500.0,0.00042908,30]
[361807845,1747823001689,-168.3888056,0.00042908,30]
[361807846,1747823001714,-693.3919763,0.00042908,30]
[361807847,1747823001739,-1289.58892491,0.00042908,30]
[361807848,1747823001764,-518.5,0.00042908,30]
[361807849,1747823001790,-174.61919141,0.00042908,30]
[361807850,1747823001814,-719.04747942,0.00042908,30]
[361807851,1747823001839,-537.6845,0.00042908,30]
[361807852,1747823001864,-1337.30371513,0.00042908,30]
[361807853,1747823001888,-181.08010149,0.00042908,30]
[361807854,1747823001913,-745.65223616,0.00042908,30]
[361807855,1747823001937,-160.47639263,0.00042908,30]
[361807856,1747823001961,-557.5788265,0.00042908,30]
[361807857,1747823001985,-1386.78395259,0.00042908,30]
[361807858,1747823002010,-187.78006525,0.00042908,30]
[361807859,1747823002035,-773.2413689,0.00042908,30]
[361807860,1747823002060,-578.20924308,0.00042908,30]
[361807861,1747823002086,-3117.18,0.00042908,120]
[361807862,1747823002113,-3117.18,0.00042908,120]
[361807863,1747823002137,-1438.09495884,0.00042908,30]
[361807864,1747823002165,-194.72792766,0.00042908,30]
[361807865,1747823002190,-599.60298507,0.00042908,30]
[361807866,1747823002221,-801.85129955,0.00042908,30]
[361807867,1747823002248,-3117.18,0.00042908,120]
[361807868,1747823002274,-3117.18,0.00042908,120]
[361807869,1747823002301,-3117.18,0.00042908,120]
[361807870,1747823002327,-201.93286099,0.00042908,30]
[361807871,1747823002352,-621.78829552,0.00042908,30]
[361807872,1747823002378,-831.51979763,0.00042908,30]
[361807873,1747823002403,-1491.30447232,0.00042908,30]
[361807874,1747823002429,-3117.18,0.00042908,120]
[361807875,1747823002455,-3117.18,0.00042908,120]
[361807876,1747823002480,-201.93286099,0.00042908,30]
[361807877,1747823002507,-3117.18,0.00042908,120]
[361807878,1747823002532,-1491.30447232,0.00042908,30]
[361807879,1747823002559,-3117.18,0.00042908,120]
[361807880,1747823002586,-3117.18,0.00042908,120]
[361807881,1747823002613,-644.79446246,0.00042908,30]
[361807882,1747823002640,-3117.18,0.00042908,120]
[361807883,1747823002667,-3117.18,0.00042908,120]
[361807884,1747823002693,-668.65185757,0.00042908,30]
[361807885,1747823002721,-3117.18,0.00042908,120]
[361807886,1747823002748,-3117.18,0.00042908,120]
[361807887,1747823002776,-3117.18,0.00042908,120]
[361807888,1747823002803,-3117.18,0.00042908,120]
[361807889,1747823002829,-693.3919763,0.00042908,30]
[361807890,1747823002856,-3117.18,0.00042908,120]
[361807891,1747823002882,-3117.18,0.00042908,120]
[361807892,1747823002909,-719.04747942,0.00042908,30]
[361807893,1747823002934,-3117.18,0.00042908,120]
[361807894,1747823002960,-200.0,0.00042908,30]
[361807895,1747823003210,-3117.18,0.00042908,120]
[361807896,1747823003237,-3117.18,0.00042908,120]
[361807897,1747823003264,-745.65223616,0.00042908,30]
[361807898,1747823003289,-207.4,0.00042908,30]
[361807899,1747823003317,-3117.18,0.00042908,120]
[361807900,1747823003341,-773.2413689,0.00042908,30]
[361807901,1747823003366,-215.0738,0.00042908,30]
[361807902,1747823003392,-3117.18,0.00042908,120]
[361807903,1747823003418,-3117.21191203,0.00042908,120]
[361807904,1747823003443,-223.0315306,0.00042908,30]
[361807905,1747823003468,-231.28369723,0.00042908,30]
[361807906,1747823003493,-239.84119403,0.00042908,30]
[361807907,1747823003518,-248.71531821,0.00042908,30]
[361807908,1747823003542,-257.91778498,0.00042908,30]
[361807909,1747823003567,-267.46074303,0.00042908,30]
[361807910,1747823003591,-277.35679052,0.00042908,30]
[361807911,1747823003618,-287.61899177,0.00042908,30]
[361807912,1747823003643,-298.26089446,0.00042908,30]
[361807913,1747823003668,-309.29654756,0.00042908,30]
[361807914,1747823003693,-320.74051982,0.00042908,30]
[361807915,1747823003718,-332.60791905,0.00042908,30]
[361807916,1747823003743,-344.91441206,0.00042908,30]
[361807917,1747823003769,-357.6762453,0.00042908,30]
[361807918,1747823003794,-357.6762453,0.00042908,30]
[361807919,1747823010477,2874.0,0.00042908,30]
[361807920,1747823049944,623.0,0.00027397,120]
[361807921,1747823108286,22600.17233802,0.00012,2]
[361807925,1747823227146,-1200.651278,0.0001194,2]
[361807926,1747823227170,-150.0,0.00011999,2]
[361807927,1747823227196,-221.76425913,0.00011999,2]
[361807928,1747823227228,-400520.58446287,0.00012,2]
[361807929,1747823249872,2000.0,0.00025,60]
[361807930,1747823260447,-126434.60546509,0.00012,2]
[361807931,1747823280883,1812.71980288,0.0001,2]
[361807932,1747823284711,96752.67473203,0.00012,2]
[361807933,1747823320847,3039.15792574,0.0002739,120]
[361807934,1747823321560,1933.39202673,0.00025,120]
[361807936,1747823333018,483.73690694,0.00027,120]
[361807937,1747823333052,1644.30879842,0.00027,120]
[361807938,1747823366126,-300.0,0.00011999,2]
[361807939,1747823366149,-3109.173922,0.00012,2]
[361807951,1747823431736,-1200.0,0.00011999,2]
[361807952,1747823431747,-150.0,0.00011999,2]
[361807953,1747823431757,-2671.79521036,0.00012,2]
[361807954,1747823431906,-300.0,0.00011999,2]
[361807955,1747823431916,-8152.11816726,0.00012,2]
[361807956,1747823431957,-1100.43320275,0.00012,2]
[361807962,1747823436055,-23304.34580597,0.00012,2]
[361807963,1747823436067,-507.01980511,0.00012,2]
[361808020,1747823437870,-3099.67286956,0.00012,2]
[361808021,1747823437926,-1559.6999998,0.00012,2]
[361808022,1747823437938,-1238.631232,0.00012,2]
[361808023,1747823437951,-3179.95002997,0.00012,2]
[361808024,1747823437983,-233257.26073881,0.00012,2]
[361808025,1747823437993,-1887.326924,0.00012,2]
[361808026,1747823438004,-250.0,0.00012849,2]
[361808027,1747823438013,-500.0,0.0001285,2]
[361808028,1747823438023,-500.0,0.0001285,2]
[361808029,1747823438033,-500.0,0.0001285,2]
[361808030,1747823438043,-896.54226625,0.0001285,2]
[361808031,1747823438053,-150.0,0.00013079,2]
[361808032,1747823438063,-395.0,0.00013172,2]
[361808033,1747823438073,-1680.0,0.00013199,2]
[361808034,1747823438083,-250.0,0.000132,2]
[361808035,1747823438093,-4276.11648079,0.00013599,2]
[361808037,1747823438103,-151.79,0.00013699,2]
[361808038,1747823438113,-150.0,0.00013699,2]
[361808039,1747823438123,-1200.0,0.00014519,2]
[361808040,1747823438133,-506.55852669,0.00015759,2]
[361808041,1747823438143,-500.0,0.00015759,2]
[361808043,1747823438152,-500.0,0.00015759,2]
[361808044,1747823438162,-500.0,0.00015759,2]
[361808046,1747823438174,-500.0,0.00015759,2]
[361808048,1747823438183,-500.0,0.00015759,2]
[361808050,1747823438200,-500.0,0.00015759,2]
[361808052,1747823438210,-500.0,0.00015759,2]
[361808054,1747823438220,-500.0,0.00015759,2]
[361808056,1747823438230,-500.0,0.00015759,2]
[361808057,1747823438240,-500.0,0.00015759,2]
[361808058,1747823438251,-500.0,0.00015759,2]
[361808059,1747823438261,-500.0,0.00015759,2]
[361808060,1747823438272,-500.0,0.00015759,2]
[361808061,1747823438282,-500.0,0.00015759,2]
[361808062,1747823438292,-561.55794033,0.00015759,2]
[361808063,1747823438302,-500.0,0.00015759,2]
[361808064,1747823438312,-500.0,0.00015759,2]
[361808065,1747823438321,-500.0,0.00015759,2]
[361808066,1747823438332,-500.0,0.00015759,2]
[361808067,1747823438345,-4276.1164807,0.0001576,2]
[361808068,1747823438355,-182.0,0.00016448,2]
[361808069,1747823438365,-67397.26711297,0.000165,2]
[361808070,1747823438375,-5413.75245113,0.000165,2]
[361808071,1747823438386,-462.01844437,0.000166,2]
[361808072,1747823438396,-462.01844425,0.000166,2]
[361808073,1747823438406,-462.01844425,0.000166,2]
[361808074,1747823438416,-462.01844425,0.000166,2]
[361808075,1747823438427,-462.01844425,0.000166,2]
[361808076,1747823438437,-4276.1164807,0.00017921,2]
[361808077,1747823438447,-5413.75245113,0.00018339,2]
[361808078,1747823438457,-150.0,0.00019273,7]
[361808079,1747823438467,-150.0,0.00019282,2]
[361808080,1747823438477,-1772.52,0.00019504,2]
[361808081,1747823438487,-41736.96073487,0.0001999,2]
[361808082,1747823438498,-4276.1164807,0.00020083,2]
[361808083,1747823438509,-5413.75245113,0.00020178,2]
[361808084,1747823438519,-5413.75245113,0.00022017,2]
[361808085,1747823438529,-4276.1164807,0.00022244,2]
[361808086,1747823438539,-234.33,0.00023836,2]
[361808087,1747823438549,-5413.75245113,0.00023856,2]
[361808088,1747823438559,-7602.89092645,0.00024,5]
[361808089,1747823438569,-4276.1164807,0.00024405,2]
[361808090,1747823438579,-60036.8544347,0.000248,2]
[361808091,1747823438590,-906.476863,0.00025,7]
[361808092,1747823438600,-999.0,0.00025,2]
[361808093,1747823438611,-5413.75245113,0.00025694,2]
[361808094,1747823438621,-696.32991924,0.00025735,2]
[361808095,1747823438631,-151.79,0.00026027,2]
[361808096,1747823438647,-4276.1164807,0.00026566,2]
[361808097,1747823438657,-1076.0,0.0002709,2]
[361808098,1747823438666,-5737.43,0.00027397,15]
[361808099,1747823438677,-5413.75245113,0.00027533,2]
[361808100,1747823438687,-1076.0,0.00028445,5]
[361808101,1747823438698,-4276.1164807,0.00028728,2]
[361808102,1747823438708,-5413.75245113,0.00029372,2]
[361808103,1747823438718,-30018.4272173,0.00029729,2]
[361808104,1747823438728,-50047.73165166,0.00029739,2]
[361808105,1747823438739,-153.73,0.00029857,2]
[361808106,1747823438751,-610.41,0.00029857,2]
[361808107,1747823438761,-1076.0,0.00029867,5]
[361808108,1747823438771,-10006.1424058,0.0002999,2]
[361808109,1747823438782,-20665.65727967,0.0003,30]
[361808110,1747823438792,-2690.97731949,0.0003013,2]
[361808111,1747823438803,-192.05,0.00030759,120]
[361808112,1747823438813,-4276.1164807,0.00030889,2]
[361808113,1747823438823,-500.0,0.00031012,2]
[361808114,1747823438833,-211.0,0.00031098,2]
[361808115,1747823438843,-166.49,0.00031101,2]
[361808116,1747823438853,-6164.16,0.0003121,2]
[361808117,1747823438863,-5413.75245113,0.00031211,2]
[361808118,1747823438873,-20941.51157861,0.00031217,2]
[361808119,1747823438883,-4000.0,0.0003131,4]
[361808120,1747823438893,-164.93,0.00031577,2]
[361808121,1747823438902,-390.83,0.00031591,2]
[361808122,1747823438912,-737.87436654,0.00031602,2]
[361808123,1747823438922,-10006.1424058,0.00031655,2]
[361808124,1747823438932,-981.35,0.00031665,2]
[361808125,1747823438942,-1000.0,0.00031717,2]
[361808126,1747823438952,-2247.55,0.00031717,2]
[361808127,1747823438962,-489.43,0.00031739,120]
[361808128,1747823438972,-737.87436654,0.00031877,2]
[361808129,1747823438982,-1553.475378,0.00031889,4]
[361808130,1747823438993,-805.46,0.00031941,2]
[361808131,1747823439008,-804.92,0.00031941,2]
[361808132,1747823439018,-610.41,0.00032121,2]
[361808133,1747823439028,-737.87436654,0.00032211,2]
[361808134,1747823439039,-155.0,0.00032211,2]
[361808135,1747823439049,-20012.2848116,0.00032291,2]
[361808136,1747823439060,-500.0,0.00032301,2]
[361808137,1747823439070,-1065.55,0.00032301,2]
[361808138,1747823439091,-29999.99,0.00032301,30]
[361808139,1747823439104,-150.99,0.00032301,30]
[361808140,1747823439114,-894.78,0.00032301,2]
[361808141,1747823439125,-999.99,0.00032301,2]
[361808142,1747823439135,-4084.02,0.00032301,10]
[361808143,1747823439145,-10523.59,0.00032301,20]
[361808144,1747823439155,-737.87436654,0.00032381,2]
[361808145,1747823439166,-400.0,0.000324,11]
[361808146,1747823439175,-305.62,0.00032421,2]
[361808147,1747823439185,-302.45,0.00032421,2]
[361808148,1747823439197,-302.88,0.00032421,2]
[361808149,1747823439207,-305.89,0.00032421,2]
[361808150,1747823439217,-302.05,0.00032491,2]
[361808151,1747823439227,-900.0,0.000325,11]
[361808152,1747823439237,-300.88,0.00032501,2]
[361808153,1747823439247,-305.51,0.00032501,2]
[361808154,1747823439261,-303.33,0.00032501,2]
[361808155,1747823439271,-303.36,0.00032501,2]
[361808156,1747823439281,-10006.1424058,0.00032533,2]
[361808157,1747823439291,-303.41,0.00032561,2]
[361808158,1747823439301,-280.72768,0.0003257,2]
[361808159,1747823439311,-303.45,0.00032579,2]
[361808160,1747823439320,-303.4,0.00032579,2]
[361808161,1747823439330,-301.46,0.00032579,2]
[361808162,1747823439342,-305.46,0.00032579,2]
[361808163,1747823439352,-300.03,0.00032579,2]
[361808164,1747823439361,-1400.0,0.000326,11]
[361808165,1747823439372,-737.87436655,0.00032651,2]
[361808166,1747823439383,-1900.0,0.000327,11]
[361808167,1747823439393,-1000.0,0.00032713,2]
[361808168,1747823439403,-317.8235,0.00032749,2]
[361808169,1747823439413,-3942.864,0.00032749,2]
[361808170,1747823439427,-155.0,0.00032759,2]
[361808171,1747823439436,-890.53191992,0.00032766,5]
[361808172,1747823439446,-270.8294,0.00032766,2]
[361808173,1747823439458,-274.65450407,0.00032766,15]
[361808174,1747823439467,-853.85614655,0.00032776,2]
[361808175,1747823439478,-47451.8100587,0.00032776,21]
[361808176,1747823439488,-10006.1424058,0.00032788,2]
[361808177,1747823439500,-1122.82345167,0.00032788,2]
[361808178,1747823439511,-2300.0,0.000328,11]
[361808179,1747823439521,-167.17,0.00032806,2]
[361808180,1747823439540,-171.30495117,0.00032833,2]
[361808181,1747823439550,-302.05,0.00032837,2]
[361808182,1747823439559,-10006.1424058,0.00032839,2]
[361808183,1747823439568,-171392.10505137,0.00032842,4]
[361808185,1747823439578,-262204.3420865,0.00032843,6]
[361808189,1747823440773,-1060.5,0.00032843,6]
[361808190,1747823440809,-4891.54843897,0.00032843,6]
[361808206,1747823443246,-500.0,0.00015759,2]
[361808207,1747823443257,-500.0,0.00015759,2]
[361808208,1747823443266,-37.5,0.00015759,2]
[361808212,1747823444993,-462.5,0.00015759,2]
[361808213,1747823445003,-500.0,0.00015759,2]
[361808214,1747823445012,-500.0,0.00015759,2]
[361808215,1747823445022,-500.0,0.00015759,2]
[361808216,1747823445031,-500.0,0.00015759,2]
[361808217,1747823445041,-500.0,0.00015759,2]
[361808218,1747823445050,-500.0,0.00015759,2]
[361808219,1747823445059,-500.0,0.00015759,2]
[361808220,1747823445068,-500.0,0.00015759,2]
[361808221,1747823445078,-500.0,0.00015759,2]
[361808222,1747823445087,-561.55794033,0.00015759,2]
[361808223,1747823445097,-500.0,0.00015759,2]
[361808224,1747823445106,-500.0,0.00015759,2]
[361808225,1747823445116,-500.0,0.00015759,2]
[361808226,1747823445125,-500.0,0.00015759,2]
[361808227,1747823445134,-500.0,0.00015759,2]
[361808228,1747823445143,-500.0,0.00015759,2]
[361808229,1747823445153,-462.01844425,0.00016866,2]
[361808230,1747823445162,-462.01844425,0.00017659,2]
[361808231,1747823445172,-462.01844425,0.00018452,2]
[361808232,1747823445181,-462.01844425,0.00019245,2]
[361808233,1747823445191,-462.01844425,0.00020038,2]
[361808234,1747823445200,-462.01844425,0.00020831,4]
[361808235,1747823445209,-462.01844425,0.00021624,5]
[361808236,1747823445219,-462.01844425,0.00022417,7]
[361808237,1747823445228,-462.01844425,0.0002321,8]
[361808238,1747823445238,-462.01844425,0.00024003,10]
[361808239,1747823445247,-462.01844425,0.00024797,11]
[361808240,1747823445257,-462.01844425,0.0002559,13]
[361808241,1747823445266,-462.01844425,0.00026383,15]
[361808242,1747823445276,-206.0,0.00031098,2]
[361808243,1747823445286,-102229.34783204,0.00032843,6]
[361808244,1747823445296,-183.052118,0.00032848,120]
[361808245,1747823445305,-11663.0,0.00032849,2]
[361808246,1747823445315,-110067.566464,0.00032856,2]
[361808247,1747823445324,-8982.58761336,0.00032856,2]
[361808248,1747823445334,-252.90102083,0.00032865,15]
[361808249,1747823445346,-14596.7048717,0.00032866,2]
[361808250,1747823445356,-199.37,0.00032866,2]
[361808251,1747823445366,-199.37,0.00032866,2]
[361808252,1747823445375,-199.37,0.00032866,2]
[361808253,1747823445386,-199.37,0.00032866,2]
[361808254,1747823445395,-500.0,0.00032873,5]
[361808255,1747823445404,-500.0,0.00032873,5]
[361808256,1747823445414,-150.0,0.00032875,2]
[361808257,1747823445423,-151.0,0.00032876,7]
[361808258,1747823445434,-151.0,0.00032876,7]
[361808259,1747823445444,-151.0,0.00032876,7]
[361808260,1747823445454,-151.0,0.00032876,7]
[361808261,1747823445463,-297.56668,0.00032876,7]
[361808262,1747823445473,-151.0,0.00032876,7]
[361808263,1747823445483,-151.0,0.00032876,7]
[361808264,1747823445493,-151.0,0.00032876,7]
[361808265,1747823445503,-151.0,0.00032876,7]
[361808266,1747823445513,-151.0,0.00032876,7]
[361808267,1747823445523,-151.0,0.00032876,7]
[361808268,1747823445535,-151.0,0.00032876,7]
[361808269,1747823445544,-151.0,0.00032876,7]
[361808270,1747823445555,-151.0,0.00032876,7]
[361808271,1747823445565,-151.0,0.00032876,7]
[361808272,1747823445575,-420.0,0.00032876,5]
[361808273,1747823445585,-420.0,0.00032876,5]
[361808274,1747823445595,-420.0,0.00032876,5]
[361808275,1747823445605,-404.46250388,0.00032876,5]
[361808276,1747823445614,-452.43184355,0.00032876,5]
[361808277,1747823445624,-450.91593177,0.00032876,2]
[361808278,1747823445633,-151.0,0.00032876,7]
[361808279,1747823445642,-420.0,0.00032876,5]
[361808280,1747823445652,-151.0,0.00032876,7]
[361808281,1747823445661,-151.0,0.00032876,7]
[361808282,1747823445671,-151.0,0.00032876,7]
[361808283,1747823445681,-151.0,0.00032876,7]
[361808284,1747823445691,-151.0,0.00032876,7]
[361808285,1747823445700,-151.0,0.00032876,7]
[361808286,1747823445710,-151.0,0.00032876,7]
[361808287,1747823445720,-151.0,0.00032876,7]
[361808288,1747823445730,-176.939649,0.00032876,7]
[361808289,1747823445740,-151.0,0.00032876,7]
[361808290,1747823445750,-151.0,0.00032876,7]
[361808291,1747823445761,-151.0,0.00032876,7]
[361808292,1747823445771,-151.0,0.00032876,7]
[361808293,1747823445781,-400.17201026,0.00032876,2]
[361808294,1747823445792,-420.0,0.00032876,5]
[361808295,1747823445802,-151.0,0.00032876,7]
[361808296,1747823445814,-151.856161,0.00032876,7]
[361808297,1747823445824,-427.52847029,0.00032876,5]
[361808298,1747823445834,-420.0,0.00032876,5]
[361808299,1747823445843,-420.0,0.00032876,2]
[361808300,1747823445854,-420.0,0.00032876,5]
[361808301,1747823445864,-184.70652236,0.00032876,5]
[361808302,1747823445873,-420.0,0.00032876,5]
[361808303,1747823445883,-420.0,0.00032876,5]
[361808304,1747823445893,-423.17072912,0.00032876,5]
[361808305,1747823445904,-420.0,0.00032876,5]
[361808306,1747823445913,-420.0,0.00032876,5]
[361808307,1747823445923,-420.0,0.00032876,5]
[361808308,1747823445933,-420.0,0.00032876,5]
[361808309,1747823445944,-420.0,0.00032876,5]
[361808310,1747823445955,-420.0,0.00032876,5]
[361808311,1747823445965,-416.33899347,0.00032876,5]
[361808312,1747823445976,-420.0,0.00032876,5]
[361808313,1747823445985,-305.30208891,0.00032876,5]
[361808314,1747823445995,-420.0,0.00032876,5]
[361808315,1747823446006,-420.0,0.00032876,5]
[361808316,1747823446015,-420.0,0.00032876,5]
[361808317,1747823446025,-420.0,0.00032876,5]
[361808318,1747823446035,-420.0,0.00032876,5]
[361808319,1747823446045,-420.0,0.00032876,5]
[361808320,1747823446054,-420.0,0.00032876,3]
[361808321,1747823446064,-420.0,0.00032876,5]
[361808322,1747823446073,-420.0,0.00032876,5]
[361808323,1747823446083,-420.0,0.00032876,5]
[361808324,1747823446092,-420.0,0.00032876,2]
[361808325,1747823446102,-420.0,0.00032876,5]
[361808326,1747823446112,-568.71963747,0.00032876,5]
[361808327,1747823446122,-449.24907149,0.00032876,5]
[361808328,1747823446132,-420.0,0.00032876,5]
[361808329,1747823446141,-169.95537576,0.00032876,5]
[361808330,1747823446151,-420.0,0.00032876,5]
[361808331,1747823446160,-420.0,0.00032876,5]
[361808332,1747823446169,-868.63,0.00032876,5]
[361808333,1747823446179,-420.0,0.00032876,5]
[361808334,1747823446188,-420.0,0.00032876,5]
[361808335,1747823446197,-420.0,0.00032876,5]
[361808336,1747823446207,-420.0,0.00032876,5]
[361808337,1747823446217,-771.73,0.00032876,5]
[361808338,1747823446227,-420.0,0.00032876,5]
[361808339,1747823446237,-1206.97,0.00032876,5]
[361808340,1747823446246,-557.83229985,0.00032876,5]
[361808341,1747823446256,-420.0,0.00032876,5]
[361808342,1747823446266,-420.0,0.00032876,5]
[361808343,1747823446275,-420.0,0.00032876,5]
[361808344,1747823446285,-1764.15,0.00032876,5]
[361808345,1747823446294,-420.0,0.00032876,5]
[361808346,1747823446304,-497.1,0.00032876,5]
[361808347,1747823446314,-550.16,0.00032876,5]
[361808348,1747823446323,-420.0,0.00032876,5]
[361808349,1747823446334,-420.0,0.00032876,5]
[361808350,1747823446346,-420.0,0.00032876,5]
[361808351,1747823446356,-965.56,0.00032876,5]
[361808354,1747823446366,-420.0,0.00032876,5]
[361808355,1747823446375,-562.65,0.00032876,5]
[361808356,1747823446386,-616.51,0.00032876,5]
[361808357,1747823446395,-420.0,0.00032876,5]
[361808358,1747823446405,-420.0,0.00032876,5]
[361808359,1747823446416,-611.48,0.00032876,5]
[361808360,1747823446428,-420.0,0.00032876,5]
[361808361,1747823446439,-420.0,0.00032876,5]
[361808362,1747823446448,-420.0,0.00032876,5]
[361808363,1747823446460,-420.0,0.00032876,5]
[361808364,1747823446470,-420.0,0.00032876,5]
[361808365,1747823446479,-420.0,0.00032876,5]
[361808366,1747823446490,-499.33,0.00032876,5]
[361808367,1747823446499,-506.54,0.00032876,5]
[361808368,1747823446511,-420.0,0.00032876,5]
[361808369,1747823446521,-911.46,0.00032876,5]
[361808370,1747823446530,-1153.75,0.00032876,5]
[361808371,1747823446540,-420.0,0.00032876,5]
[361808372,1747823446550,-420.0,0.00032876,5]
[361808373,1747823446559,-420.0,0.00032876,5]